Cogmind - Beta 15 @@@ ROGUE MODE // 2025.05.25 @ 21:27:04 Player: McSaucyNugget Result: Defending 0bPrime! Performance ------------- Evolutions (8) 4000 Regions Visited (14) 2800 Robots Destroyed (105) 525 Value Destroyed (4947) 4947 Prototype IDs (97) 1940 Alien Tech Used (7) 1400 Bonus (19729) 19729 TOTAL SCORE: 35341 Bonus ------- High Alert Combat Kills 429 Registered with UFD 300 Met Optimus in HQ 500 Met Warlord at Base 500 MAIN.C Attacked Warlord 500 Scanned by Researcher 500 Met Optimus at Protoforge 1000 Completed Drillbomb Mission10000 Optimus Survived to 0b1 3000 Win 3000 Cogmind --------- Core Integrity 394/1450 Matter 300/300 Energy 190/190 System Corruption 20% Temperature Cool (0) Movement Hovering (36) Location 0bPrime Parts ------- > --- POWER (2) -------- Light Quantum Reactor > --- PROPULSION (9) --- Antigrav System Antigrav System Improved Antigrav System Backup Propulsion VII Gravjet Array Gravjet Array Experimental Surge Thruster > --- UTILITY (9) ------ Concept Weapon Articulator Makeshift Propulsion Shielding Makeshift Propulsion Shielding Makeshift Medium Armor Plating Makeshift Heavy Armor Plating Makeshift Heavy Armor Plating Centrium Light Armor Plating > --- WEAPON (3) ------- Plasma Lance Plasma Lance Plasma Lance > --- INVENTORY (5) ---- Impulse Thruster Array Peak State ------------ > --- POWER ------------ Neutrino Core Cooled Antimatter Reactor > --- PROPULSION ------- Improved Antigrav System Gravjet Array Gravjet Array Gravjet Array Gravjet Array > --- UTILITY ---------- Advanced Heat Sink Large Storage Unit Advanced Visual Processing Unit Advanced Signal Interpreter Concept Melee Reflex Suite Concept Weapon Articulator Makeshift Medium Armor Plating Centrium Light Armor Plating Graphene Brace > --- WEAPON ----------- Gamma Rifle Plasma Lance Vortex Lance > --- INVENTORY -------- Subatomic Replicator Core Cannon Fusion Bomb Launcher UFD Drillbomb [Rating: 199] Favorites ----------- Power Ion Engine Engine Ion Engine Power Core Light Fission Core Reactor Light Quantum Reactor Propulsion Gravjet Array Treads Light Treads Wheel Compact Wheel Hover Unit Gravjet Array Flight Unit Flightbrick Utility Improved Hacking Suite Device Improved Transmission Jammer Storage High-capacity Storage Unit Processor Advanced Signal Interpreter Hackware Improved Hacking Suite Protection Makeshift Light Armor Plating Weapon Plasma Lance Energy Gun Vortex Shotgun Energy Cannon Enhanced Nova Cannon Ballistic Gun Hypervelocity Gauss Rifle Ballistic Cannon Battle Cannon Launcher Fusion Bomb Launcher Impact Weapon Powered Hammer Slashing Weapon Centrium Greatsword Piercing Weapon Plasma Lance Build | -11 -10 -10 -9 -6 -5 -4 -4 -4 -3 -3 -3 -2 -2 -2 ------- Run | Yrd Mat Sub Scr Fac Fac Fac Upp War Pro Res Tes Res Qua Frg Slots Evolved 16 | . . . . 8 2 2 . . . 2 . 2 . . Power 1 | . . . . . . 1 . . . . . . . . Propulsion 7 | . . . . 4 . 1 . . . 1 . 1 . . Utility 7 | . . . . 3 2 . . . . 1 . 1 . . Weapon 1 | . . . . 1 . . . . . . . . . . Parts Attached 165 | 6 6 5 2 24 13 16 . 4 . 6 9 9 9 56 Power 25 | 1 1 . 1 1 2 1 . 1 . 2 2 2 4 7 Engine 4 | 1 1 . . 1 . 1 . . . . . . . . Core 5 | . . . 1 . 2 . . 1 . . . . . 1 Reactor 16 | . . . . . . . . . . 2 2 2 4 6 Propulsion 47 | 2 1 1 1 9 6 4 . . . 1 3 2 . 17 Treads 9 | 2 . 1 . 5 1 . . . . . . . . . Leg . | . . . . . . . . . . . . . . . Wheel 6 | . 1 . 1 4 . . . . . . . . . . Hover 12 | . . . . . . . . . . . . . . 12 Flight 20 | . . . . . 5 4 . . . 1 3 2 . 5 Utility 55 | 1 3 1 . 8 3 8 . . . 2 2 4 1 22 Device 19 | . 1 . . 3 1 3 . . . 1 . 4 . 6 Storage 6 | 1 1 . . . . . . . . 1 1 . 1 1 Processor 8 | . . . . 2 . 3 . . . . . . . 3 Hackware 6 | . . . . 1 2 2 . . . . 1 . . . Protection 16 | . 1 1 . 2 . . . . . . . . . 12 Artifact . | . . . . . . . . . . . . . . . Weapon 38 | 2 1 3 . 6 2 3 . 3 . 1 2 1 4 10 Energy Gun 4 | . 1 . . . . . . 2 . . . . . 1 Energy Cannon 4 | . . . . . . . . . . . 2 1 . 1 Ballistic Gun 11 | 2 . 2 . 4 1 . . . . . . . . 2 Ballistic Cannon 1 | . . 1 . . . . . . . . . . . . Launcher 2 | . . . . 1 . . . . . . . . 1 . Special Weapon . | . . . . . . . . . . . . . . . Impact Weapon 2 | . . . . . . . . . . . . . 1 1 Slashing Weapon 5 | . . . . 1 1 1 . . . 1 . . 1 . Piercing Weapon 9 | . . . . . . 2 . 1 . . . . 1 5 Special Melee Weapon . | . . . . . . . . . . . . . . . Unidentified Prototypes 28 | . . . . 2 2 . . 3 . . 4 1 6 10 Parts Lost 33 | . 1 1 . 2 . 4 . . . 1 . 2 1 21 Power 4 | . . . . . . 1 . . . . . . . 3 Propulsion 12 | . . 1 . 1 . . . . . . . 1 . 9 Utility 12 | . . . . 1 . 3 . . . 1 . . 1 6 Weapon 5 | . 1 . . . . . . . . . . 1 . 3 Highest Loss Streak 5 | . 1 1 . 1 . 2 . . . 1 . 1 1 5 To Critical Strikes . | . . . . . . . . . . . . . . . Average Backups 10 | 1 10 16 16 14 8 3 4 4 4 8 8 7 9 5 Power . | . 1 1 1 1 . . . . . . . 1 1 . Propulsion 2 | 1 2 4 5 2 2 1 1 1 1 3 2 1 2 1 Utility 3 | . 5 6 4 3 1 1 2 2 2 2 1 1 1 . Weapon 2 | . 1 4 4 5 3 1 1 1 1 2 3 2 2 1 Tool/Special . | . . . . . . . . . . . . . . . Unused Backups 37 | . . . 8 3 7 3 . . . 1 2 2 7 4 Power 4 | . . . . 1 1 . . . . . . 1 1 . Propulsion 10 | . . . 1 . 2 1 . . . . 2 . 1 3 Utility 6 | . . . 3 . . 1 . . . . . . 2 . Weapon 11 | . . . 4 2 2 1 . . . 1 . 1 . . Tool/Special 6 | . . . . . 2 . . . . . . . 3 1 Average Slot Usage (%) 86 | . 99 100 100 84 82 82 85 85 85 77 73 77 72 76 Engine 5 | . 14 14 8 3 2 . 4 2 . . . . . . Core 2 | . . . 5 2 2 7 4 5 9 . . . . . Reactor 2 | . . . . . . . . . . 6 7 8 7 7 Treads 6 | . 14 14 14 14 6 . . . . . . . . . Wheel 6 | . 13 14 14 15 4 . . . . . . . . . Hover 3 | . . . . . . . . . . . . . . 18 Flight 6 | . . . . . 7 17 19 19 19 16 17 19 16 3 Device 8 | . 8 8 . 4 18 14 9 9 9 8 11 11 14 9 Storage 7 | . 16 14 14 6 1 . . . . 3 4 4 4 3 Processor 4 | . . . . 4 5 12 14 14 14 12 8 8 8 5 Hackware 6 | . . . . 1 11 14 19 19 19 17 18 20 17 3 Protection 6 | . 2 5 14 9 4 . . . . . . . . 12 Ballistic Gun 9 | . 24 13 14 19 10 9 9 3 . . . . . . Ballistic Cannon 3 | . . 13 14 . . . . . . . . . . . Piercing Weapon 2 | . . . . . . 2 4 7 9 4 . 2 3 8 Peak Build Rating 199 | 6 8 19 26 63 104 125 125 137 137 149 158 176 194 199 Average Rating 89 | 5 7 16 21 48 90 118 125 131 137 139 148 170 167 175 On Entrance 92 | . 6 8 19 26 61 104 125 125 137 137 139 149 158 193 Naked Turns . | . . . . . . . . . . . . . . . Heaviest Build 121 | 11 51 55 57 79 74 36 26 31 31 47 52 65 65 121 Greatest Support 132 | 40 40 16 16 80 38 47 31 44 44 50 53 65 65 132 Greatest Overweight (x) 6 | . 3 3 5 6 1 . . . . . 1 1 1 1 Average Overweight (x) . | . 2 3 3 2 . . . . . . . . . . Largest Inventory Capacity 20 | 8 20 20 20 20 20 5 5 5 5 10 10 10 15 15 Average Capacity 14 | 7 19 20 20 20 10 5 5 5 5 9 10 10 12 14 Most Carried 20 | 4 13 20 20 20 20 5 5 5 5 10 10 10 15 15 Average Carried 13 | 1 10 19 19 18 10 4 5 5 5 9 9 9 12 12 Final Capacity 20 | 8 20 20 20 20 5 5 5 5 5 10 10 10 15 5 Final Carried 20 | 4 13 20 20 20 5 5 5 5 5 10 10 10 15 2 Class Distribution -------------------- 26% | Hacker-Ninja 21% | Mutant 18% | Derelict-Mutant 10% | Scavenger-Sprinter 5% | Hacker-Sprinter 3% | Tank 3% | Scavenger-Mutant Dominant Class ---------------- Mutant | -10/Materials Mutant | -10/Subcaves Derelict-Mutant | -9/Scraptown Tank | -6/Factory Hacker-Mutant | -5/Factory Hacker-Ninja | -4/Factory Hacker-Ninja | -4/Upper Caves Hacker-Ninja | -4/Warlord Hacker-Ninja | -3/Proximity Caves Hacker-Ninja | -3/Research Hacker-Ninja | -3/Testing Hacker-Ninja | -2/Research Hacker-Ninja | -2/Quarantine Scavenger-Sprinter | -2/Protoforge Resources | -11 -10 -10 -9 -6 -5 -4 -4 -4 -3 -3 -3 -2 -2 -2 ----------- Run | Yrd Mat Sub Scr Fac Fac Fac Upp War Pro Res Tes Res Qua Frg Matter Collected 4386 | 191 397 305 21 722 458 132 . . . 41 337 140 340 1302 Remotely . | . . . . . . . . . . . . . . . Salvage Created 5225 | . 420 226 . 976 53 182 . . . 74 594 313 879 1508 Parts 257 | . 27 21 . 56 7 11 . . . 5 21 19 27 63 Haulers Intercepted 3 | . . . . 1 . . . . . . 1 . . 1 Recyclers Shooed 4 | . 1 . . 3 . . . . . . . . . . Parts Field Recycled . | . . . . . . . . . . . . . . . Retrieved Matter . | . . . . . . . . . . . . . . . Parts Self-Destructed 21 | . . 21 . . . . . . . . . . . . Prevented . | . . . . . . . . . . . . . . . Kills | -11 -10 -10 -9 -6 -5 -4 -4 -4 -3 -3 -3 -2 -2 -2 ------- Run | Yrd Mat Sub Scr Fac Fac Fac Upp War Pro Res Tes Res Qua Frg Combat Hostiles Destroyed 69 | . 13 9 . 13 . 1 . . . . 2 3 7 21 Melee 24 | . . . . . . 1 . . . . 2 3 4 14 Guns 28 | . 13 6 . 9 . . . . . . . . . . Cannons 3 | . . 3 . . . . . . . . . . . . AOE 10 | . . . . 4 . . . . . . . . . 6 Classes Destroyed 21 | . 2 2 . 8 . . . . . . 1 . 1 7 Worker 3 | . . . . 2 . 1 . . . . . . . . Builder 1 | . . . . 1 . . . . . . . . . . Hauler 3 | . . . . 1 . . . . . . 1 . . 1 Recycler 5 | . . . . . . . . . . . 2 1 2 . Mechanic 4 | . . . . . . . . . . . . . . 4 Operator 5 | . . . . 1 2 . . . . . . . . 2 Drone 2 | . . . . . . . . . . . . . . 2 Watcher 15 | . . . . 1 . 3 . . . 2 3 . 3 3 Swarmer 19 | . 5 6 . 4 . . . . . . . . . 4 Grunt 17 | . 8 . . 5 . . . . . . . 1 . 3 Brawler 1 | . . . . 1 . . . . . . . . . . Duelist 1 | . . . . . . . . . . . . . . 1 Researcher 1 | . . . . . . . . . . . . . 1 . Sentry 2 | . . 1 . . . . . . . . . . . 1 Hunter 6 | . . . . 2 . . . . . . 2 . 2 . Programmer 12 | . . . . 1 . 1 . . . . . 2 5 3 Q-Series 1 | . . . . . . . . . . . . . . 1 Hotshot 1 | . . . . . . . . . . . . . . 1 Decapitator 3 | . . . . . . . . . . . . . . 3 Striker 1 | . . . . . . . . . . . . . . 1 Executioner 1 | . . . . . . . . . . . . . . 1 Subdweller 2 | . . 2 . . . . . . . . . . . . Best Kill Streak 6 | . 3 3 . 4 1 1 . . . 1 3 1 6 4 Combat Bots Only 5 | . 3 3 . 4 . 1 . . . . 2 1 5 3 Max Kills in Single Turn 2 | . 1 1 . 2 1 1 . . . 1 1 1 1 2 Gunslinging . | . . . . . . . . . . . . . . . Exploded 2 | . . . . 2 . . . . . . . . . 2 Melee 1 | . . . . . . 1 . . . . 1 1 1 1 Uniques/NPCs Destroyed . | . . . . . . . . . . . . . . . Combat | -11 -10 -10 -9 -6 -5 -4 -4 -4 -3 -3 -3 -2 -2 -2 -------- Run | Yrd Mat Sub Scr Fac Fac Fac Upp War Pro Res Tes Res Qua Frg Hostile Shots Fired 755 | . 58 44 . 79 19 42 4 . 14 33 44 41 39 338 Missed 305 | . 13 20 . 23 8 24 3 . 8 11 19 18 12 146 Hits 450 | . 45 24 . 56 11 18 1 . 6 22 25 23 27 192 Melee 33 | . . . . 1 . . . . . 14 . . . 18 Projectile 417 | . 45 24 . 55 11 18 1 . 6 8 25 23 27 174 AOE 2 | . . . . . . . . . . . . . . 2 Critical Strikes 32 | . . 1 . 2 . 1 . . 1 7 1 . 1 18 Actively Blocked 14 | . . . . . . . . . . 6 . . . 8 Part Disruptions 1 | . . . . . . . . . . . . . 1 . Damage Taken 10957 | . 489 214 . 1059 199 450 25 . 119 424 458 435 622 6463 Core 1240 | . 95 54 . 93 . 50 . . 39 52 19 . 72 766 Absorbed by Shields 15 | . . . . . . . . . . . . . . 15 Redirected to Shielding 52 | . . . . . . . . . . . . . . 52 Regen/Repaired (Parts) 218 | . . . . . . . . 14 . . . . 120 84 Core Remaining (%) 77 | 100 . . 40 89 100 . . . 92 . 94 . . 27 Volleys Fired 175 | . 49 26 . 49 9 1 . . . . 5 6 12 18 Largest 3 | . 2 2 . 3 3 1 . . . . 1 1 1 1 Hottest 300 | . 40 61 . 99 99 33 . . . . 113 120 120 300 Shots Fired 330 | . 91 43 . 130 21 4 . . . . 5 6 12 18 Gun 256 | . 91 17 . 122 21 4 . . . . . . . 1 Cannon 56 | . . 26 . . . . . . . . 5 6 11 8 Launcher 18 | . . . . 8 . . . . . . . . 1 9 Special . | . . . . . . . . . . . . . . . Kinetic 281 | . 91 43 . 122 21 4 . . . . . . . . Thermal 30 | . . . . . . . . . . . 5 6 11 8 Explosive 10 | . . . . . . . . . . . . . 1 9 Electromagnetic 9 | . . . . 8 . . . . . . . . . 1 Robot Hit Streak 8 | . 7 5 . 8 3 . . . . . . . . 5 Robot Miss Streak 6 | . 5 4 . 2 2 2 . . . . . . 6 1 Penetration Max 1 | . . . . 1 . . . . . . . . . 1 Secondary Targets 3 | . 2 . . 1 . . . . . . . . . . Max Gunslinging Chain 1 | . 1 . . 1 . . . . . . . . . . Shots Hit Robots 284 | . 51 14 . 76 9 13 . . . 2 13 7 23 76 Core Hits 165 | 1 25 10 . 47 5 7 . . . 2 9 4 11 44 Critical Kills 11 | . . . . 10 1 . . . . . . . . . Critical Parts Destroyed 19 | . 1 . . 14 3 . . . . . . . . 1 Critical Strikes 44 | . 1 1 . 24 4 2 . . . 1 . 2 1 8 Destroy 31 | . 1 . . 24 4 . . . . . . . . 2 Blast 1 | . . 1 . . . . . . . . . . . . Sever 4 | . . . . . . 2 . . . . . 1 . 1 Impale 4 | . . . . . . . . . . 1 . . . 3 Sunder 4 | . . . . . . . . . . . . 1 1 2 Melee Attacks 364 | . . . . 2 31 64 . . 2 40 38 26 39 122 Kinetic 6 | . . . . . . . . . . . . . 6 . Impact 4 | . . . . . . . . . . . . . . 4 Slashing 152 | . . . . 2 31 33 . . . 5 36 20 4 21 Piercing 166 | . . . . . . 31 . . 1 33 . . 12 89 Entropic 36 | . . . . . . . . . 1 2 2 6 17 8 Sneak Attacks 23 | . . . . . 1 1 . . . . 4 1 4 12 Combat Hostiles 1 | . . . . . . . . . . . . . 1 . Follow-up Attacks 26 | . . . . . . . . . . 1 2 1 2 20 Martial Strikes 2 | . . . . . . . . . . . . . . 2 Damage Inflicted 13061 | 1 540 314 . 1081 144 723 . . . 127 1254 621 1837 6419 Guns 1326 | . 521 192 . 539 51 . . . . . . . . 23 Cannons 472 | . . 122 . . . . . . . . . . . 350 Explosions 2485 | . . . . 482 . . . . . . . . 94 1909 Melee 8723 | . . . . 36 83 723 . . . 127 1254 620 1743 4137 Ramming 55 | 1 19 . . 24 10 . . . . . . 1 . . Kinetic 1612 | . 521 314 . 539 51 . . . . . . . 187 . Thermal 384 | . . . . 34 . . . . . . . . . 350 Explosive 2003 | . . . . . . . . . . . . . 94 1909 Electromagnetic 471 | . . . . 448 . . . . . . . . . 23 Impact . | . . . . . . . . . . . . . . . Slashing 2993 | . . . . 36 83 365 . . . . 1170 352 257 730 Piercing 3678 | . . . . . . 358 . . . 66 . . 140 3114 Entropic 1865 | . . . . . . . . . . 61 84 268 1159 293 Highest Corruption 20 | . . . . 2 . 2 2 2 . . . . 2 20 Average Corruption 9 | . . . . 1 . 1 2 2 . . . . 1 14 Corruption Purged . | . . . . . . . . . . . . . . . Corruption Blocked . | . . . . . . . . . . . . . . . Effects 115 | . . . . 6 . 7 . . . . . . 4 98 Message Errors 21 | . . . . . . 1 . . . . . . 2 18 Matter Fused 21 | . . . . 1 . 2 . . . . . . . 18 Heat Flow Errors 19 | . . . . 3 . 1 . . . . . . 1 14 Energy Discharges 18 | . . . . 1 . . . . . . . . 1 16 Parts Rejected 1 | . . . . . . . . . . . . . . 1 Data Loss (minor) 11 | . . . . . . . . . . . . . . 11 Data Loss (major) 6 | . . . . . . . . . . . . . . 6 Misfires 4 | . . . . 1 . 3 . . . . . . . . Misdirections 14 | . . . . . . . . . . . . . . 14 Overload Shots . | . . . . . . . . . . . . . . . Overflow Damage 1054 | . . . . . . 23 . . . . 108 47 263 613 Projectiles 70 | . . . . . . . . . . . . . . 70 Explosions 88 | . . . . . . . . . . . . . . 88 Melee 896 | . . . . . . 23 . . . . 108 47 263 455 Knockbacks 2 | . . 2 . . . . . . . . . . . . Impact . | . . . . . . . . . . . . . . . Kinetic 2 | . . 2 . . . . . . . . . . . . Secondary . | . . . . . . . . . . . . . . . Self-Inflicted Damage 46 | . 6 . . 26 5 . . . . . . . . 9 Shots 4 | . . . . 3 . . . . . . . . . 1 Rammed 9 | 1 4 . . 2 1 . . . . . . 1 . . Targets Rammed 9 | 1 4 . . 2 1 . . . . . . 1 . . Kicked . | . . . . . . . . . . . . . . . Crushed . | . . . . . . . . . . . . . . . Highest Temperature 330 | . 18 17 . 315 30 206 . 41 30 88 330 171 222 258 Average Temperature 50 | . 7 17 . 84 12 66 . 25 14 20 31 46 129 85 Received Heat Transfer 966 | . 186 45 . 174 . 36 . . 39 . 9 63 . 414 Siege Activations . | . . . . . . . . . . . . . . . Martial Activations . | . . . . . . . . . . . . . . . Shielding Activations . | . . . . . . . . . . . . . . . Robots Disrupted . | . . . . . . . . . . . . . . . Combat Hostiles . | . . . . . . . . . . . . . . . Robots Corrupted . | . . . . . . . . . . . . . . . Combat Hostiles . | . . . . . . . . . . . . . . . Parts Fried 1 | . . . . 1 . . . . . . . . . . Impact Corruptions . | . . . . . . . . . . . . . . . Robots Melted . | . . . . . . . . . . . . . . . Combat Hostiles . | . . . . . . . . . . . . . . . Parts Melted . | . . . . . . . . . . . . . . . Heat Transferred . | . . . . . . . . . . . . . . . Parts Sabotaged . | . . . . . . . . . . . . . . . Parts Stolen . | . . . . . . . . . . . . . . . Parts Stripped 29 | . . . . . . . . . . . . . 29 . Power Chain Reactions 1 | . . . . 1 . . . . . . . . . . Alert | -11 -10 -10 -9 -6 -5 -4 -4 -4 -3 -3 -3 -2 -2 -2 ------- Run | Yrd Mat Sub Scr Fac Fac Fac Upp War Pro Res Tes Res Qua Frg Maximum Alert Level 4 | . . . . . . . . . . . . . . 4 Low Security (%) 77 | 100 100 . . 100 100 100 . . . 100 100 100 100 17 Level 1 1 | . . . . . . . . . . . . . . 5 Level 2 2 | . . . . . . . . . . . . . . 10 Level 3 14 | . . . . . . . . . . . . . . 52 Level 4 3 | . . . . . . . . . . . . . . 13 Level 5 . | . . . . . . . . . . . . . . . High Security . | . . . . . . . . . . . . . . . Max Security . | . . . . . . . . . . . . . . . Peak Influence 1319 | . 94 . . 125 150 43 . . . 27 47 129 128 1319 Initial 60 | . . . . . 39 20 . . . 20 3 24 60 18 Average 220 | . 29 . . 63 43 9 . . . 4 18 36 18 745 Influence Increases 4848 | . 336 180 . 467 352 255 . . 60 101 253 291 410 2143 Destroy 0b10 Robot/C 1320 | . 260 140 . 260 . 20 . . . . 40 60 160 380 Destroy 0b10 Robot/NC 185 | . . . . 30 5 20 . . . 10 30 5 25 60 Destroy Leader 324 | . 70 10 . 64 . 16 . . . 4 18 20 36 86 Successful Hack 170 | . 6 . . . 33 31 . . . 22 20 29 3 26 Disable Machine 360 | . . . . 15 45 15 . . . . 45 . 135 105 Destroy Structure 854 | . . . . 8 134 78 . . . 50 40 57 36 451 Partial Spotted 165 | . . . . . 45 15 . . . . . 30 15 60 Lose Combat Pursuer 1470 | . . 30 . 90 90 60 . . 60 15 60 90 . 975 Influence Decreases 3531 | . 336 126 54 385 392 281 7 9 30 124 215 227 485 860 Entered New Map 235 | . . . 54 . 43 22 7 9 . 10 4 21 49 16 Time Decay 2608 | . 326 116 . 284 349 249 . . 30 102 178 162 178 634 Lost Part 300 | . 10 10 . 20 . 10 . . . 10 . 20 10 210 Lost Ally 18 | . . . . . . . . . . 2 . 16 . . Purge Threat 370 | . . . . 81 . . . . . . 33 8 248 . Squads Dispatched 49 | . 3 . . 4 9 7 . . . 6 2 4 4 10 Investigation 19 | . 1 . . . 6 4 . . . 2 . 2 . 4 Extermination 15 | . . . . 1 2 3 . . . 2 1 2 3 1 Reinforcement 15 | . 2 . . 3 1 . . . . 2 1 . 1 5 Assault . | . . . . . . . . . . . . . . . Garrison . | . . . . . . . . . . . . . . . Intercept . | . . . . . . . . . . . . . . . Searches Triggered . | . . . . . . . . . . . . . . . Construction Impeded 2 | . . . . 2 . . . . . . . . . . Haulers Reinforced 1 | . . . . 1 . . . . . . . . . . Active Scanning Responses . | . . . . . . . . . . . . . . . Cargo Convoy Interrupts . | . . . . . . . . . . . . . . . Stealth | -11 -10 -10 -9 -6 -5 -4 -4 -4 -3 -3 -3 -2 -2 -2 --------- Run | Yrd Mat Sub Scr Fac Fac Fac Upp War Pro Res Tes Res Qua Frg Distress Signals 12 | . 2 . . . . . . . . . 1 2 . 7 Communications Jammed 44 | . . . . . 2 8 . . . 10 5 1 2 16 Distress Signals 44 | . . . . . 2 8 . . . 10 5 1 2 16 Times Spotted 307 | . 24 12 . 18 16 20 6 . 4 10 15 19 13 150 Peak Tracking Total 14 | . 4 6 . 4 7 5 7 . 4 5 5 6 3 14 Tactical Retreats 46 | . . 1 . 3 4 4 . . 1 1 2 2 . 28 Traps | -11 -10 -10 -9 -6 -5 -4 -4 -4 -3 -3 -3 -2 -2 -2 ------- Run | Yrd Mat Sub Scr Fac Fac Fac Upp War Pro Res Tes Res Qua Frg Traps Triggered 19 | . 4 . . 4 . 2 . . . . . 1 . 8 Indirectly . | . . . . . . . . . . . . . . . Trap Hack Attempts . | . . . . . . . . . . . . . . . Triggered . | . . . . . . . . . . . . . . . Disarmed . | . . . . . . . . . . . . . . . Reprogrammed . | . . . . . . . . . . . . . . . Reused . | . . . . . . . . . . . . . . . Traps Extracted . | . . . . . . . . . . . . . . . Installed . | . . . . . . . . . . . . . . . Triggered . | . . . . . . . . . . . . . . . Machines | -11 -10 -10 -9 -6 -5 -4 -4 -4 -3 -3 -3 -2 -2 -2 ---------- Run | Yrd Mat Sub Scr Fac Fac Fac Upp War Pro Res Tes Res Qua Frg Machines Disabled 27 | . . 1 . 1 3 1 . . . . 3 . 9 9 Max in Single Turn 3 | . . 1 . 1 3 1 . . . . 1 . 2 2 Garrison Access 6 | . . . . . . 2 . . . . . 2 1 1 Machines Repaired . | . . . . . . . . . . . . . . . Machines Dismantled . | . . . . . . . . . . . . . . . Machines Sabotaged . | . . . . . . . . . . . . . . . Overloaded Fab Kills . | . . . . . . . . . . . . . . . Hacking | -11 -10 -10 -9 -6 -5 -4 -4 -4 -3 -3 -3 -2 -2 -2 --------- Run | Yrd Mat Sub Scr Fac Fac Fac Upp War Pro Res Tes Res Qua Frg Machines Accessed 82 | . 2 1 2 2 9 14 . 7 . 6 9 11 11 8 Terminals 48 | . 2 . . 2 4 6 . . . 4 8 8 9 5 Fabricators . | . . . . . . . . . . . . . . . Repair Stations 2 | . . . . . . . . . . . 1 . 1 . Recycling Units 14 | . . . . . 5 4 . . . 2 . 1 . 2 Scanalyzers 2 | . . . . . . 2 . . . . . . . . Garrison Access 6 | . . . . . . 2 . . . . . 2 1 1 Total Hacks 180 | . 4 1 6 7 17 27 . 19 . 15 26 25 21 12 Successful 123 | . 2 1 6 3 9 18 . 19 . 9 11 17 17 11 Failed 57 | . 2 . . 4 8 9 . . . 6 15 8 4 1 Catastrophic 9 | . . . . 1 1 2 . . . . 2 2 1 . Database Lockouts . | . . . . . . . . . . . . . . . Manual 87 | . 4 . . 6 13 18 . . . 10 16 11 3 6 Terminals 125 | . 4 . . 7 10 18 . . . 13 24 22 18 9 Fabricators . | . . . . . . . . . . . . . . . Repair Stations 4 | . . . . . . . . . . . 2 . 2 . Recycling Units 16 | . . . . . 7 4 . . . 2 . 1 . 2 Scanalyzers 3 | . . . . . . 3 . . . . . . . . Garrison Access 6 | . . . . . . 2 . . . . . 2 1 1 Terminal Hacks 74 | . . 1 6 2 2 4 . 19 . 4 8 10 13 5 Record 16 | . . . 1 . . . . 8 . . 1 1 4 1 Robot Analysis 5 | . . . 5 . . . . . . . . . . . Prototype ID Bank 11 | . . . . . . 1 . 9 . . . 1 . . Open Door 2 | . . . . . . . . 2 . . . . . . Level Access Points 1 | . . . . . . . . . . 1 . . . . Branch Access Points 3 | . . . . . . 1 . . . 1 . . 1 . Emergency Access Points 6 | . . . . . . 1 . . . 1 . 1 1 2 Machine Index 3 | . . . . . . 1 . . . . . 1 . 1 Terminal Index 1 | . . . . . . . . . . . 1 . . . Recycling Unit Index 1 | . . . . . . . . . . . . 1 . . Garrison Index 2 | . . . . . . . . . . 1 1 . . . Alert Level 1 | . . . . . . . . . . . . 1 . . Unreport Threat 9 | . . . . 1 1 . . . . . 2 1 4 . Recall Investigation 2 | . . . . . 1 . . . . . . 1 . . Recall Extermination 3 | . . . . . . . . . . . 1 1 1 . Recall Reinforcements 2 | . . . . . . . . . . . 1 . 1 . Zone Layout 4 | . . . . 1 . . . . . . 1 1 1 . Proto ID Catalog 2 | . . 1 . . . . . . . . . . . 1 Fabricator Hacks . | . . . . . . . . . . . . . . . Repair Station Hacks 2 | . . . . . . . . . . . . . 2 . Scan Component 1 | . . . . . . . . . . . . . 1 . Repair 1 | . . . . . . . . . . . . . 1 . Recycling Unit Hacks . | . . . . . . . . . . . . . . . Scanalyzer 3 | . . . . . . 3 . . . . . . . . Insert Component 2 | . . . . . . 2 . . . . . . . . Analyze 1 | . . . . . . 1 . . . . . . . . Garrison Access Hacks 6 | . . . . . . 2 . . . . . 2 1 1 Seal Access 6 | . . . . . . 2 . . . . . 2 1 1 Unauthorized Hacks 38 | . 2 . . 1 7 9 . . . 5 3 5 1 5 Terminals 24 | . 2 . . 1 2 5 . . . 3 3 4 1 3 Assimilate 8 | . 2 . . . 1 . . . . 2 1 2 . . Botnet 15 | . . . . 1 1 4 . . . 1 2 2 1 3 Operators 1 | . . . . . . 1 . . . . . . . . Fabricators . | . . . . . . . . . . . . . . . Repair Stations . | . . . . . . . . . . . . . . . Recycling Units 14 | . . . . . 5 4 . . . 2 . 1 . 2 Fedlink 14 | . . . . . 5 4 . . . 2 . 1 . 2 Scanalyzers . | . . . . . . . . . . . . . . . Garrison Access . | . . . . . . . . . . . . . . . Data Cores Recovered 2 | . . . . . . . . . . . . . . 2 Used . | . . . . . . . . . . . . . . . Hacking Detections 36 | . 1 . . 2 5 5 . . . 4 9 6 2 2 Full Trace Events 2 | . . . . . 1 . . . . . . 1 . . Feedback Events . | . . . . . . . . . . . . . . . Feedback Blocked . | . . . . . . . . . . . . . . . Robot Schematics Acquired 1 | . . . . . . . . . . . . . 1 . Robots Built . | . . . . . . . . . . . . . . . Authchips . | . . . . . . . . . . . . . . . Time . | . . . . . . . . . . . . . . . Total Robot Build Rating . | . . . . . . . . . . . . . . . Part Schematics Acquired 2 | . . . . . . 1 . . . . . . 1 . Parts Built . | . . . . . . . . . . . . . . . Authchips . | . . . . . . . . . . . . . . . Time . | . . . . . . . . . . . . . . . Total Part Build Rating . | . . . . . . . . . . . . . . . Parts Repaired 1 | . . . . . . . . . . . . . 1 . Time 108 | . . . . . . . . . . . . . 108 . Parts Recycled . | . . . . . . . . . . . . . . . Recycled Matter . | . . . . . . . . . . . . . . . Retrieved Matter . | . . . . . . . . . . . . . . . Retrieved Components . | . . . . . . . . . . . . . . . Parts Scanalyzed 1 | . . . . . . 1 . . . . . . . . Part Schematics Acquired 1 | . . . . . . 1 . . . . . . . . Parts Damaged 1 | . . . . . . 1 . . . . . . . . Bothacking | -11 -10 -10 -9 -6 -5 -4 -4 -4 -3 -3 -3 -2 -2 -2 ------------ Run | Yrd Mat Sub Scr Fac Fac Fac Upp War Pro Res Tes Res Qua Frg Used RIF Installer . | . . . . . . . . . . . . . . . Robots Hacked . | . . . . . . . . . . . . . . . Non-combat . | . . . . . . . . . . . . . . . Combat . | . . . . . . . . . . . . . . . Robot Hacks Applied . | . . . . . . . . . . . . . . . Relay Couplers Released . | . . . . . . . . . . . . . . . Fabnet Peak Effective % . | . . . . . . . . . . . . . . . Robots Rewired . | . . . . . . . . . . . . . . . Allies Hacked . | . . . . . . . . . . . . . . . Hacks Repelled . | . . . . . . . . . . . . . . . Allies | -11 -10 -10 -9 -6 -5 -4 -4 -4 -3 -3 -3 -2 -2 -2 -------- Run | Yrd Mat Sub Scr Fac Fac Fac Upp War Pro Res Tes Res Qua Frg Total Allies 5 | . . . . . 1 . . . . 1 1 2 . . Largest Group 1 | . . . . . 1 . . . . 1 1 1 . . Highest-Rated Group 45 | . . . . . 26 . . . . 26 45 26 . . Highest-Rated Ally 45 | . . . . . 26 . . . . 26 45 26 . . Total Orders . | . . . . . . . . . . . . . . . Ally Attacks . | . . . . . . . . . . . . . . . Total Damage . | . . . . . . . . . . . . . . . Kills . | . . . . . . . . . . . . . . . Allies Corrupted . | . . . . . . . . . . . . . . . Allies Melted 3 | . . . . . . . . . . . . . . 3 Intel | -11 -10 -10 -9 -6 -5 -4 -4 -4 -3 -3 -3 -2 -2 -2 ------- Run | Yrd Mat Sub Scr Fac Fac Fac Upp War Pro Res Tes Res Qua Frg Active Infowar (turns) 7848 | . 824 853 . 258 925 952 8 323 85 411 472 371 790 1576 Optics 2721 | . . . . . . 879 8 323 85 407 . . . 1019 Sensors 4377 | . . . . 52 891 871 8 323 85 411 472 371 726 167 Seismic 3459 | . 824 853 . 206 882 694 . . . . . . . . Machine Analysis 3731 | . . . . . . 708 8 323 85 411 472 371 790 563 Jamming 3136 | . . . . . 406 383 . . . 367 354 370 726 530 Robot Analysis Total 5 | . . . 5 . . . . . . . . . . . Derelict Logs Recovered 3 | . . 2 1 . . . . . . . . . . . Drone Launches . | . . . . . . . . . . . . . . . Drone Recoveries . | . . . . . . . . . . . . . . . Exploration | -11 -10 -10 -9 -6 -5 -4 -4 -4 -3 -3 -3 -2 -2 -2 ------------- Run | Yrd Mat Sub Scr Fac Fac Fac Upp War Pro Res Tes Res Qua Frg Turns Passed 12020 | 111 1304 1483 1766 792 925 952 8 323 85 411 472 371 790 2227 Spaces Moved 15574 | 67 536 963 1186 474 1082 1718 23 785 264 702 929 891 1242 4712 Core 9 | 9 . . . . . . . . . . . . . . Treads 245 | 58 184 . . 3 . . . . . . . . . . Legs . | . . . . . . . . . . . . . . . Wheels 3145 | . 352 963 1186 471 173 . . . . . . . . . Hover 3812 | . . . . . . . . . . . . . . 3812 Flight 8363 | . . . . . 909 1718 23 785 264 702 929 891 1242 900 Fastest Speed 22 | 50 130 145 145 105 30 25 32 24 24 27 28 22 28 25 Average Speed 56 | 145 194 145 147 119 45 31 32 31 28 27 28 27 34 32 Slowest Speed 320 | 160 320 145 155 320 105 34 32 32 29 30 100 98 103 115 Overloaded Moves 232 | . . . . . . 4 . . . . . 89 31 108 Propulsion Burnouts 1 | . . . . . . . . . . . . . . 1 Robots Hopped 51 | . . . . . 8 2 . . . 7 6 7 17 4 Potential Cave-ins 95 | . . . . . . . . . . . . . . 95 Cave-ins Triggered 2 | . . . . . . . . . . . . . . 2 Teleports 1 | . . . . . . . . . . . . . . 1 Exploration Rate (%) 51 | 5 91 61 81 11 25 39 6 93 51 28 87 31 93 65 Regions Visited 14 Branch Regions 8 Pre-discovered Areas 1 | . . . . . 1 . . . . . . . . . Known Exits Taken 9 | . . . . 1 1 1 . 1 1 1 1 1 1 . Unknown Exits Taken 5 | 1 1 1 1 . . . 1 . . . . . . . Scrap Searched 10 | . . 7 3 . . . . . . . . . . . Spaces Dug 198 | . . . . 1 30 40 . . 1 26 21 21 9 49 Terrain Destroyed 399 | . . 2 . 8 67 40 . . 1 26 21 21 11 202 Melee 154 | . . . . 1 30 40 . . 1 26 16 15 4 21 Projectile 97 | . . 2 . . . . . . . . 5 6 7 77 AOE 144 | . . . . 3 37 . . . . . . . . 104 Terrain Rammed . | . . . . . . . . . . . . . . . Walls Destroyed . | . . . . . . . . . . . . . . . Machines Disabled . | . . . . . . . . . . . . . . . Actions | -11 -10 -10 -9 -6 -5 -4 -4 -4 -3 -3 -3 -2 -2 -2 --------- Run | Yrd Mat Sub Scr Fac Fac Fac Upp War Pro Res Tes Res Qua Frg Total 17871 | 77 709 1009 1210 600 1445 2016 22 863 270 838 1057 966 1531 5258 Wait 1091 | . 100 . . 16 285 195 . 68 6 87 57 6 174 97 Move 15464 | 67 535 962 1185 473 1066 1713 22 784 263 688 916 877 1211 4702 Hop 45 | . . . . . 7 2 . . . 6 6 7 13 4 Pick Up 126 | 4 9 8 11 8 8 8 . . . 6 5 8 20 31 Fast Attach 119 | 6 7 . . 12 6 8 . 4 . 2 10 3 12 49 Attach 84 | . 1 1 . 7 8 3 . . . 1 4 4 13 42 Detach 62 | . . . . 7 2 2 . . . 1 3 1 11 35 Swap 75 | . 4 6 2 11 5 7 . 2 . 4 1 11 5 17 Drop 180 | . . 6 12 13 17 13 . 5 . 5 14 11 25 59 Fire 175 | . 49 26 . 49 9 1 . . . . 5 6 12 18 Melee 318 | . . . . 2 31 64 . . 1 38 36 22 34 90 Ram 4 | . 2 . . 1 1 . . . . . . . . . Kick . | . . . . . . . . . . . . . . . Crush 3 | . 2 . . 1 . . . . . . . . . . Escape Stasis 25 | . . . . . . . . . . . . 10 1 14 Rewire . | . . . . . . . . . . . . . . . Trap . | . . . . . . . . . . . . . . . Miscellaneous 100 | . . . . . . . . . . . . . . 100 Route ------- -11/Scrapyard -10/Materials (discovered 5 exits: [*Mat x2] / [*Min x2] / *Sub) -10/Subcaves (discovered 3 exits: [*Mat x2] / *Scr) -9/Scraptown (discovered 2 exits: *Fac x2) -6/Factory -5/Factory -4/Factory (discovered 4 exits: *Res / *Upp x2 / Arm) -4/Upper Caves -4/Warlord -3/Proximity Caves -3/Research (discovered 5 exits: Res x3 / *Tes x2) -3/Testing -2/Research (discovered 3 exits: *Acc x2 / *Qua) -2/Quarantine (discovered 3 exits: *Acc / *Sec / *Frg) -2/Protoforge 0bPrime History --------- Turn | Location | Event 4 | -11/Scrapyard | Discovered new exit (range 16) 112 | -11/Scrapyard | Entered Materials 302 | -10/Materials | Build established: Mutant 417 | -10/Materials | Discovered new exit (range 13) 471 | -10/Materials | Discovered new exit (range 13) 943 | -10/Materials | Discovered new exit (range 6) 982 | -10/Materials | Discovered new exit (range 4) 1403 | -10/Materials | Discovered new exit (range 5) 1416 | -10/Materials | Entered Subcaves 1417 | -10/Subcaves | Approached by a straggling Scientist 1507 | -10/Subcaves | Visited 4L-MR0's lab 1526 | -10/Subcaves | Found Flightbrick 2319 | -10/Subcaves | Core integrity fell below 50% 2474 | -10/Subcaves | Discovered new exit (range 15) 2720 | -10/Subcaves | Build established: Derelict-Mutant 2854 | -10/Subcaves | Learned Materials trap positions 2889 | -10/Subcaves | Discovered new exit (range 13) 2890 | -10/Subcaves | Scientist uncovered a shortcut to Scraptown 2899 | -10/Subcaves | Entered Scraptown 3181 | -9/Scraptown | Discovered new exit (range 5) 3230 | -9/Scraptown | Scanned Subdweller tech in exchange for log data 3234 | -9/Scraptown | Learned Factory emergency access door positions 3277 | -9/Scraptown | Visited Comm Corps 3340 | -9/Scraptown | Visited Fellowship of the Rings 3522 | -9/Scraptown | Visited Red Mages 3577 | -9/Scraptown | Visited The Evicted 3590 | -9/Scraptown | Visited Symbiants 3600 | -9/Scraptown | Visited SPCMW 3652 | -9/Scraptown | Visited UFD Registry 3652 | -9/Scraptown | Registered with UFD as "Dualnuts" 3696 | -9/Scraptown | Visited TADAMA 3940 | -9/Scraptown | Visited Analyses Database 3976 | -9/Scraptown | Visited Junk Repository 4047 | -9/Scraptown | Visited Science Guys 4157 | -9/Scraptown | Visited Scrapoid Pod Storage 4198 | -9/Scraptown | Found Scrapoid Pod 4231 | -9/Scraptown | Visited Supply Room 4310 | -9/Scraptown | Visited Research Penetration Think Tank 4331 | -9/Scraptown | Visited LU-1G1's Boring Crew 4441 | -9/Scraptown | Visited DA-N13 Charitable Foundation 4449 | -9/Scraptown | Found DCF Scrap (31 items) 4576 | -9/Scraptown | Met Optimus 4576 | -9/Scraptown | Accepted into 0bPrime 4660 | -9/Scraptown | Discovered new exit (range 3) 4665 | -9/Scraptown | Entered Factory 4665 | -6/Factory | Evolved 8 slots: Propulsion x4, Utility x3, Weapon x1 4971 | -6/Factory | Build established: Tank 5437 | -6/Factory | Discovered new exit (range 8) 5456 | -6/Factory | Identified exit to Factory 5457 | -6/Factory | Entered another Factory area 5457 | -5/Factory | Evolved 2 slots: Utility x2 5809 | -5/Factory | Attached Flightbrick, gained temporary slots: Utility x3 5851 | -5/Factory | Loaded intel: 8 recycling unit locations 6001 | -5/Factory | Learned location of Protoforge (-2) 6026 | -5/Factory | Spotted B-75 Beast 6096 | -5/Factory | Build established: Hacker-Mutant 6382 | -5/Factory | Discovered new exit (range 5) 6382 | -5/Factory | Identified exit to Factory 6382 | -5/Factory | Entered another Factory area 6382 | -4/Factory | Evolved 2 slots: Power x1, Propulsion x1 6410 | -4/Factory | Identified exit to Upper Caves 6410 | -4/Factory | Identified exit to Armory 6447 | -4/Factory | Loaded intel: 8 recycling unit locations 6570 | -4/Factory | Discovered new exit (range 19) 6647 | -4/Factory | Spotted B-86 Titan 6742 | -4/Factory | Build established: Hacker-Ninja 6853 | -4/Factory | Spotted B-86 Titan 7334 | -4/Factory | Entered Upper Caves 7337 | -4/Upper Caves | Attracted the attention of an 0b10 outpost 7342 | -4/Upper Caves | A Derelict revealed a hidden shortcut to "reach the base" 7342 | -4/Upper Caves | Entered Warlord 7353 | -4/Warlord | System corruption cleaned by Quarantine Array 7431 | -4/Warlord | Learned Testing trap positions 7431 | -4/Warlord | Learned Quarantine trap positions 7431 | -4/Warlord | Learned 4 Armory zone layouts 7431 | -4/Warlord | Learned 4 Command zone layouts 7431 | -4/Warlord | Learned Factory scanalyzer intel 7431 | -4/Warlord | Learned Research garrison access intel 7451 | -4/Warlord | Visited the Vortex Lab 7454 | -4/Warlord | Found Prototype Piercing Weapon 7454 | -4/Warlord | Identified Vortex Lance 7456 | -4/Warlord | Found Prototype Energy Gun 7456 | -4/Warlord | Identified Vortex Rifle 7459 | -4/Warlord | Found Prototype Energy Gun 7459 | -4/Warlord | Identified Vortex Shotgun 7466 | -4/Warlord | Warlord's base attacked by MAIN.C 7490 | -4/Warlord | Rebuked by Warlord 7657 | -4/Warlord | Opened side exit 7663 | -4/Warlord | Discovered new exit (range 9) 7664 | -4/Warlord | Identified exit to Proximity Caves 7665 | -4/Warlord | Entered Proximity Caves 7666 | -3/Proximity Caves | Identified exit to Research 7750 | -3/Proximity Caves | Entered Research 7750 | -3/Research | Evolved 2 slots: Propulsion x1, Utility x1 7751 | -3/Research | Loaded intel: 4 garrison access locations 7865 | -3/Research | Identified exit to Research 7896 | -3/Research | Spotted B-86 Titan 7918 | -3/Research | Loaded intel: 5 recycling unit locations 8053 | -3/Research | Identified exit to Testing 8161 | -3/Research | Entered Testing 8162 | -3/Testing | Loaded intel: 27 trap records 8254 | -3/Testing | Found Prototype Energy Cannon 8254 | -3/Testing | Identified Hpw. Disruptor Cannon 8262 | -3/Testing | Discovered exit to Research (range 6) 8327 | -3/Testing | Found Portable AFG 8633 | -3/Testing | Entered Research 8633 | -2/Research | Evolved 2 slots: Propulsion x1, Utility x1 8634 | -2/Research | Identified exit to Quarantine 8772 | -2/Research | Spotted B-90 Cyclops 8800 | -2/Research | Found Fusion Bomb Launcher 8825 | -2/Research | Loaded intel: 5 recycling unit locations 8851 | -2/Research | Discovered new exit (range 8) 8933 | -2/Research | Found Adv. Force Booster 8993 | -2/Research | Discovered new exit (range 10) 9002 | -2/Research | Identified exit to Access 9004 | -2/Research | Entered Quarantine 9005 | -2/Quarantine | Loaded intel: 14 trap records 9023 | -2/Quarantine | Found Alien Artifact 9023 | -2/Quarantine | Identified Subatomic Replicator 9156 | -2/Quarantine | Found Alien Reactor 9156 | -2/Quarantine | Identified Matter Drive 9299 | -2/Quarantine | Repaired Cld. Antimatter Reactor 9331 | -2/Quarantine | Found Alien Impact Weapon 9331 | -2/Quarantine | Identified Core Stripper 9407 | -2/Quarantine | Found Alien Artifact 9407 | -2/Quarantine | Identified Terrabomb 9407 | -2/Quarantine | Used Terrabomb 9433 | -2/Quarantine | Discovered exit to Access (range 10) 9470 | -2/Quarantine | Scanned by Researcher 9482 | -2/Quarantine | Found Alien Energy Cannon 9516 | -2/Quarantine | Found Alien Artifact 9521 | -2/Quarantine | Found Alien Artifact 9530 | -2/Quarantine | Found Alien Artifact 9533 | -2/Quarantine | Found Alien Artifact 9596 | -2/Quarantine | Found Alien Slashing Weapon 9596 | -2/Quarantine | Identified Sigix Broadsword 9769 | -2/Quarantine | Spotted Fortress 9791 | -2/Quarantine | Discovered new exit (range 6) 9791 | -2/Quarantine | Discovered new exit (range 6) 9792 | -2/Quarantine | Identified exit to Section 7 9793 | -2/Quarantine | Identified exit to Protoforge 9794 | -2/Quarantine | Entered Protoforge 9880 | -2/Protoforge | Spotted Hotshot 9918 | -2/Protoforge | Spotted Hotshot 9918 | -2/Protoforge | Spotted Hotshot 9933 | -2/Protoforge | Destroyed Hotshot 9944 | -2/Protoforge | Spotted AP7-3 9947 | -2/Protoforge | Superfortress began startup sequence 9949 | -2/Protoforge | Spotted Overlord 9952 | -2/Protoforge | Spotted Hotshot 9960 | -2/Protoforge | Spotted AP7-3 9964 | -2/Protoforge | Spotted EXE-6 9964 | -2/Protoforge | Spotted EXE-6 9969 | -2/Protoforge | Spotted Decapitator 9970 | -2/Protoforge | Spotted Decapitator 9983 | -2/Protoforge | Destroyed Decapitator 9993 | -2/Protoforge | UFD initiated attack on Protoforge 9993 | -2/Protoforge | Loaded intel: 3 recycling unit locations 10016 | -2/Protoforge | Spotted EXE-6 10016 | -2/Protoforge | Spotted EXE-6 10029 | -2/Protoforge | Optimus greeted in Protoforge 10062 | -2/Protoforge | Identified Core Cannon 10157 | -2/Protoforge | Additional patrols dispatched to research labs 10158 | -2/Protoforge | System corruption reached 10% 10187 | -2/Protoforge | Lost 5 parts (1p2n2u) 10191 | -2/Protoforge | Found Prototype Processor 10191 | -2/Protoforge | Identified Cep. Melee Reflex Suite 10192 | -2/Protoforge | Found Prototype Device 10192 | -2/Protoforge | Identified Exp. Kinecellerator 10195 | -2/Protoforge | Found Prototype Device 10195 | -2/Protoforge | Identified Mni. Quantum Capacitor 10204 | -2/Protoforge | Found Prototype Storage 10205 | -2/Protoforge | Identified Cep. NT7 Matterbank 10207 | -2/Protoforge | Identified Transdimensional Reconstructor 10208 | -2/Protoforge | Found Prototype Device 10208 | -2/Protoforge | Identified Crosscalibrator 10213 | -2/Protoforge | Spotted Decapitator 10213 | -2/Protoforge | Spotted Decapitator 10213 | -2/Protoforge | Spotted Decapitator 10213 | -2/Protoforge | Spotted Decapitator 10214 | -2/Protoforge | Spotted Immortal 10214 | -2/Protoforge | Spotted Immortal 10219 | -2/Protoforge | Warped through subspace 10244 | -2/Protoforge | Crushed by falling debris 10265 | -2/Protoforge | Found Cep. Weapon Articulator 10291 | -2/Protoforge | Found UFD Drillbomb 10296 | -2/Protoforge | Spotted Executioner 10310 | -2/Protoforge | Build established: Hacker-Sprinter 10310 | -2/Protoforge | Spotted Striker 10311 | -2/Protoforge | Spotted Striker 10320 | -2/Protoforge | Spotted Executioner 10379 | -2/Protoforge | Found UFD Drillbomb 10436 | -2/Protoforge | Spotted Striker 10437 | -2/Protoforge | Spotted Striker 10475 | -2/Protoforge | Spotted Executioner 10479 | -2/Protoforge | Spotted Striker 10527 | -2/Protoforge | Used Subatomic Replicator to replicate UFD Drillbomb 10539 | -2/Protoforge | Installed UFD Drillbomb at designated target 10539 | -2/Protoforge | UFD reported confirmed Drillbomb installation 10556 | -2/Protoforge | Installed UFD Drillbomb at designated target 10556 | -2/Protoforge | UFD reported confirmed Drillbomb installation 10565 | -2/Protoforge | Found UFD Drillbomb 10610 | -2/Protoforge | Installed UFD Drillbomb at designated target 10610 | -2/Protoforge | UFD reported confirmed Drillbomb installation 10613 | -2/Protoforge | Spotted Striker 10613 | -2/Protoforge | Spotted Executioner 10616 | -2/Protoforge | Build established: Scavenger-Sprinter 10671 | -2/Protoforge | Spotted Hotshot 10672 | -2/Protoforge | Spotted Hotshot 10726 | -2/Protoforge | Spotted Striker 10741 | -2/Protoforge | Found UFD Drillbomb 10823 | -2/Protoforge | Installed UFD Drillbomb at designated target 10823 | -2/Protoforge | UFD reported confirmed Drillbomb installation 10829 | -2/Protoforge | Spotted Striker 10841 | -2/Protoforge | Spotted Executioner 10867 | -2/Protoforge | Found UFD Drillbomb 10944 | -2/Protoforge | Core integrity fell below 50% 10957 | -2/Protoforge | Spotted Decapitator 10958 | -2/Protoforge | Spotted Decapitator 10958 | -2/Protoforge | Spotted Executioner 10998 | -2/Protoforge | Spotted Executioner 11009 | -2/Protoforge | Spotted Striker 11010 | -2/Protoforge | Spotted Executioner 11031 | -2/Protoforge | Spotted Striker 11097 | -2/Protoforge | Spotted Executioner 11131 | -2/Protoforge | Destroyed Executioner 11140 | -2/Protoforge | Installed UFD Drillbomb at designated target 11140 | -2/Protoforge | UFD reported confirmed Drillbomb installation 11153 | -2/Protoforge | Spotted Striker 11154 | -2/Protoforge | Spotted Striker 11226 | -2/Protoforge | Spotted Executioner 11251 | -2/Protoforge | Lost 3 allies 11251 | -2/Protoforge | Installed UFD Drillbomb at designated target 11251 | -2/Protoforge | UFD reported confirmed Drillbomb installation 11251 | -2/Protoforge | Spotted Striker 11259 | -2/Protoforge | Spotted Striker 11271 | -2/Protoforge | Found UFD Drillbomb 11310 | -2/Protoforge | Destroyed Striker 11340 | -2/Protoforge | Lost 8 allies 11351 | -2/Protoforge | Spotted Executioner 11370 | -2/Protoforge | Crushed by falling debris 11416 | -2/Protoforge | Installed UFD Drillbomb at designated target 11416 | -2/Protoforge | UFD reported confirmed Drillbomb installation 11447 | -2/Protoforge | Found UFD Drillbomb 11475 | -2/Protoforge | Installed UFD Drillbomb at designated target 11475 | -2/Protoforge | UFD reported confirmed Drillbomb installation 11485 | -2/Protoforge | Spotted Striker 11511 | -2/Protoforge | Spotted Executioner 11520 | -2/Protoforge | Found UFD Drillbomb 11569 | -2/Protoforge | Spotted Hotshot 11582 | -2/Protoforge | Lost 3 allies 11588 | -2/Protoforge | Spotted Hotshot 11628 | -2/Protoforge | Installed UFD Drillbomb at designated target 11628 | -2/Protoforge | UFD reported confirmed Drillbomb installation 11649 | -2/Protoforge | Found UFD Drillbomb 11656 | -2/Protoforge | Spotted Striker 11665 | -2/Protoforge | Spotted Striker 11679 | -2/Protoforge | Discovered exit to Access (range 16) 11712 | -2/Protoforge | Destroyed Decapitator 11743 | -2/Protoforge | Lost 4 parts (1p3n) 11782 | -2/Protoforge | Lost 5 allies 11878 | -2/Protoforge | Destroyed Decapitator 11921 | -2/Protoforge | Installed UFD Drillbomb at designated target 11921 | -2/Protoforge | UFD reported confirmed Drillbomb installation 11922 | -2/Protoforge | UFD began Drillbomb countdown 11967 | -2/Protoforge | Spotted Striker 11995 | -2/Protoforge | Spotted Executioner 12003 | -2/Protoforge | Build established: Scavenger-Mutant 12022 | *** | Defending 0bPrime! Last Messages --------------- 12007_ H-88 Terminator destroyed. 12007_ Slug penetrates Forge Plexus. 12012_ 0bP_NET: Hello everyone, and welcome to the end of MC's control over the Protoforge! 12013_ 0bP_NET: In T-9 this fine piece of machinery is all ours for the steep price of... many UFD lives. 12013_ Acquired 20 matter. 12014_ 0bP_NET: But with it we will not only rebuild, we will wrest full control over 0b1 for ourselves! 12015_ 0bP_NET: What better way to punctuate our success than a blaze of glory, directed away from ourselves, of course. 12015_ N-04 Retriever inserts Antimatter Reactor into Forge Plexus. 12016_ 0bP_NET: Time for our final countdown to an explosive victory... 12016_ N-04 Retriever inserts Prototype Processor into Forge Plexus. 12017_ 0bP_NET: 5! 12018_ 0bP_NET: 4! 12019_ 0bP_NET: 3! 12020_ 0bP_NET: If you're in the wrong place at the wrong time, the wrong time being in just a moment, I'm sorry but prepare to die. 12021_ 0bP_NET: Otherwise, enjoy the show! Map ----- +----------------------------------------------------+ | #####?# " """" "" """"""""""""""""" | | ####?# " """"""""""""""""""" | | ##???# "" " """"""""""""""""""""" | | "#???# " % """"""""""""""""""""""" | | ##???# " "" """"""""""""""""""""""""" | | ##???# """"" " """""""""""""""""""""""""" | | ###### " " " """""""""""""""""""""""""" | | ## # "" " "" """""""""""""""""""""""""" | | "##"#"#% "" " """"""""""""""""""""""""""" | | %%"#%%% "" " """"""""""""""""""""""""""" | | % % #%%& " """"""""""""""""""""""""""" | | % % %%#%%%% % """"""""""""""""""""""""""" | | "%% "#[% % % """"""""""""""""""""""""""" | | [!!*=##!%% % % % """"""""""""""""""""""""""" | | !!=[ "#%[%%%"%% % " """"""""""""""""""""""""""" | | "" " ##!%!% " %&%%%"%""""""""""""""""""""""""""" | | " ##!![=%" %% "%""""""""""""""""""""""""""" | | | "# =!! %%% """""""""""""""""""""""""" | | #"##### =% %% % """""""""""""""""""""""""" | | =###### """% % "% %"""""""""""""""""""""""""" | | #?????# """ "%%!" %[!""""""""""""""""""""""""" | | ??????# " %%%[%% %*%""""""""""""""""""""""" | | ??????# % "%% =!!E3""""""""""""""""""""" | | ####??# " % ![%= "==![%""""""""""""""""""" | | ## #??# "" %"! % " !=![%""""""""""""""""" " | | ## #??# " "" = @!s=[""""""""""""""" "" | | ## #??# " " % %!%%!%= """"""""" "" | | ## #??# " % "=!%*!*! SS%!%%*% %""%"" | | ## #?## % " " """ %!="E""SS%E !S!% " | | ## ## # " """ % % % js ==*m!S%%[ %" | | ## # #% % % % s *=[" "%"" | | #"#" # " " = " / ["% "" ="" %""""" | | "#"%"## % % ! %" """" " | | % % %%" % % " * "" "%[ " "" | | %%% " % %" " " %! % " " | | % %" %" %" " % %""" | | "%" ### " " "" " " " " | | ###### % %% % " " " % " | | ####### " ""% % | | ??????# " " % " | | ??????# "" % " """""""""" % | | ??????# " " " % " " """ " | | ??????#####"## ################################## | | ???????# # # ####????????????????????????????????? | | ???????## ####??????????????????????????????????## | | ??????## ##?????????????????????????????????????#" | | ?????## ##??????????????????????????????????????#" | | ###### ##???????????????????????????????????????#" | | #####"##????????????????????????????????????????#" | | ##?????????????????????????????????????????#" | +----------------------------------------------------+ Best States ------------- Heat Dissipation 68 Energy Generation 45 Energy Capacity 595 Matter Stores 300 Matter Capacity 300 Sight Range 20 Robot Scan Range 18 Terrain Scan Density 10 Jamming Range 14 Power Amplification 30 Armor Coverage 1100 Core Shielding 30 Propulsion Shielding 15 Evasion (%) 65 Targeting Accuracy 30 Armor Integrity Analysis 30 Recoil Reduction 3 Offensive Hacking 48 Defensive Hacking 21 Item Schematics ----------------- Cld. Nuclear Pulse Thruster | -4/Factory | Scanalyzed Exp. Biometal Leg | -2/Quarantine | Archive Robot Schematics ------------------ A-27 Freighter | -2/Quarantine | Archive Fabricated ------------ Nothing Repaired ---------- Cld. Antimatter Reactor | 30% | -2/Quarantine Alien Tech Used ----------------- Subatomic Replicator Matter Drive Core Stripper Terrabomb Sigix Broadsword Core Cannon Transdimensional Reconstructor Achievements -------------- Hard Hitter Quantum Hacking Challenges ------------ None Game ------ Seed HackingSupersonicReactor Manual? 0 Play Time 05:12:00 Cumulative 59.3 hours Start 2025.05.25 @ 09:10:49 End 2025.05.25 @ 21:27:04 Sessions 5 Manual Loads 0 Difficulty Rogue Special Mode None Game No. 41 Rogue 41 Adventurer 0 Explorer 0 Win Type 9 Total 5 Types 2/0/1/0/1/0/0/0/0/1 Lore% 51 Gallery% 48 Achievement% 53 Wizard Run 0 Options --------- Layout 0 ASCII 0 Keyboard 1 Movement Vi Keybinds 0 Fullscreen 2 Font 18/SmallcapsGlow Map View 76x50 Zoom Use 0% Tactical HUD 1 Map Filters NONE Filters NONE Steam 1 RUN: 4bc399f1-4bbe-4d4a-a6c7-94e386f68c8b